[Event "89th GER-ch"]
[Site "Dresden"]
[Date "2018.08.06"]
[Round "4"]
[White "Buhmann, Rainer"]
[Black "Heinert, Eugen"]
[Result "1-0"]
[ECO "A13"]
[WhiteElo "2581"]
[BlackElo "2146"]
[Annotator "RC"]
[PlyCount "109"]
[EventDate "2018.08.03"]
[EventType "swiss"]
[EventCountry "GER"]
[SourceTitle "playchess.com"]
[Source "ChessBase"]
[SourceQuality "1"]
[TimeControl "40/5400+30:1800+30"]

1. Nf3 d5 2. c4 e6 3. e3 Nf6 4. b3 b6 5. Bb2 Bb7 6. cxd5 exd5 7. Bb5+ c6 8. Be2 Nbd7 9. O-O Bd6 10. Nd4 g6 11. f4 Qe7 12. Qe1 c5 13. Nb5 Bb8 14. Bf3 O-O 15. Qh4 Re8 16. Qh6 Qf8 17. Qh3 Qe7 18. N1c3 a6 19. Na3 Bd6 20. Rae1 b5 21. Nc2 b4 22. Nd1 Ne4 23. Re2 a5 24. d3 Ba6 25. dxe4 dxe4 26. Bg4 f5 27. Bxf5 gxf5 28. Rd2 Bxf1 29. Qg3+ Kf8 30. Rd5 Rec8 31. Rxf5+ Ke8 32. Qg8+ Nf8 33. Bg7 Bd3 34. Bxf8 Qxf8 35. Rxf8+ Bxf8 36. Ne1 Bb1 37. Qe6+ Kd8 38. Nf2 Ra7 39. Qb6+ Rcc7 40. Qf6+ Ke8 41. Qb2 Bxa2 42. Qxa2 c4 43. Qa4+ Ke7 44. Nxe4 Bg7 45. Nc2 Rab7 46. Kf2 cxb3 47. Qxb3 a4 48. Qxa4 b3 49. Na3 b2 50. Nb1 Rc1 51. Qa3+ Kd8 52. Qa8+ Kc7 53. Ned2 Rb6 54. Qg8 Bc3 55. Nxc3 1-0

[Event "89th GER-ch"]
[Site "Dresden"]
[Date "2018.08.06"]
[Round "4"]
[White "Heimrath, Reiner"]
[Black "Proschmann, Tino"]
[Result "1-0"]
[ECO "B23"]
[WhiteElo "2200"]
[BlackElo "2092"]
[Annotator "NA RC"]
[PlyCount "81"]
[EventDate "2018.08.03"]
[EventType "swiss"]
[EventCountry "GER"]
[SourceTitle "playchess.com"]
[Source "ChessBase"]
[SourceQuality "1"]
[TimeControl "40/5400+30:1800+30"]

1. e4 c5 2. Nc3 Nc6 3. d3 g6 4. Be3 d6 5. d4 cxd4 6. Bxd4 Nxd4 7. Qxd4 Nf6 8. e5 dxe5 9. Bb5+ Bd7 10. Qxe5 a6 11. Bxd7+ Qxd7 12. Rd1 Qg4 13. Nge2 Bg7 14. O-O O-O 15. Rd4 Qf5 16. Qxf5 gxf5 17. Rb4 Rab8 18. a4 Rfd8 19. Rd1 Rxd1+ 20. Nxd1 Rd8 21. Rd4 Rxd4 22. Nxd4 e6 23. Nb3 Nd7 24. Na5 Nc5 25. b3 Kf8 26. Kf1 Ke7 27. Ke2 Kd7 28. Nc4 b5 29. axb5 axb5 30. Nd2 Kc6 31. f3 Bd4 32. Nf2 Be5 33. g3 Bf6 34. Nd3 Nxd3 35. Kxd3 h5 36. f4 Be7 37. Nf3 Bf6 38. c4 bxc4+ 39. Kxc4 Kd6 40. b4 Kc6 41. Ne5+ 1-0

[Event "89th GER-ch"]
[Site "Dresden"]
[Date "2018.08.06"]
[Round "4.1"]
[White "Kvetny, Mark"]
[Black "Poetsch, Hagen"]
[Result "1/2-1/2"]
[ECO "A17"]
[WhiteElo "2421"]
[BlackElo "2513"]
[Annotator "ChessBase"]
[PlyCount "102"]
[EventDate "2018.08.03"]
[EventType "swiss"]
[EventCountry "GER"]
[SourceTitle "playchess.com"]
[Source "ChessBase"]
[SourceQuality "1"]
[TimeControl "40/5400+30:1800+30"]

1. c4 {[%emt 1:30:27]} e6 {[%emt 1:30:12]} 2. Nc3 {[%emt 1:30:49]} Bb4 {[%emt 1:28:05]} 3. Qb3 {[%emt 1:25:12]} Nc6 {[%emt 1:26:53]} 4. Nf3 {[%emt 1:23:21]} Nf6 {[%emt 1:26:14]} 5. a3 {[%emt 1:13:42]} Bxc3 {[%emt 1:26:09]} 6. Qxc3 {[%emt 1:14:06]} d5 {[%emt 1:22:31]} 7. e3 {[%emt 1:06:18]} O-O {[%emt 1:20:51]} 8. b4 {[%emt 1:00:28]} Re8 {[%emt 1:15:47]} 9. b5 {[%emt 0:54:20]} Ne4 {[%emt 1:07:29]} 10. Qc2 {[%emt 0:52:17]} Na5 {[%emt 1:07:53]} 11. Be2 {[%emt 0:48:51]} b6 {[%emt 1:01:38]} 12. O-O {[%emt 0:37:53]} Bb7 {[%emt 0:59:43]} 13. d3 {[%emt 0:35:21]} Nc5 {[%emt 0:53:35]} 14. cxd5 {[%emt 0:33:46]} Qxd5 {[%emt 0:52:02]} 15. Bb2 {[%emt 0:32:50]} a6 {[%emt 0:49:52]} 16. a4 {[%emt 0:28:03]} Qb3 {[%emt 0:41:51]} 17. Qc3 {[%emt 0:23:49]} Qxc3 {[%emt 0:40:33]} 18. Bxc3 {[%emt 0:24:16]} Nab3 {[%emt 0:38:06]} 19. Rab1 {[%emt 0:21:44]} axb5 {[%emt 0:37:19]} 20. d4 {[%emt 0:17:05]} bxa4 {[%emt 0:35:33]} 21. dxc5 {[%emt 0:17:24]} Nxc5 {[%emt 0:35:49]} 22. Bb4 {[%emt 0:13:52]} Be4 {[%emt 0:31:02]} 23. Rb2 {[%emt 0:10:34]} Nd3 {[%emt 0:29:44]} 24. Bxd3 {[%emt 0:10:40]} Bxd3 {[%emt 0:30:08]} 25. Rc1 {[%emt 0:10:32]} Red8 {[%emt 0:19:58]} 26. Ne5 {[%emt 0:09:22]} f6 {[%emt 0:16:20]} 27. Nxd3 {[%emt 0:08:08]} Rxd3 {[%emt 0:16:35]} 28. Kf1 {[%emt 0:07:45]} a3 {[%emt 0:12:06]} 29. Ra2 {[%emt 0:06:59]} c5 {[%emt 0:12:08]} 30. Be1 {[%emt 0:06:18]} Rb3 {[%emt 0:11:11]} 31. Ke2 {[%emt 0:04:33]} Kf7 {[%emt 0:10:55]} 32. Kd1 {[%emt 0:04:05]} Ke8 {[%emt 0:05:40]} 33. Kc2 {[%emt 0:03:20]} c4 {[%emt 0:05:58]} 34. Rb1 {[%emt 0:01:15]} Rxb1 {[%emt 0:06:21]} 35. Kxb1 {[%emt 0:01:43]} Ra4 {[%emt 0:06:38]} 36. Rc2 {[%emt 0:01:27]} b5 {[%emt 0:01:49]} 37. Ka2 {[%emt 0:01:52]} Ra7 {[%emt 0:02:05]} 38. Bb4 {[%emt 0:00:45]} Ra4 {[%emt 0:02:07]} 39. Be1 {[%emt 0:01:03]} Ra7 {[%emt 0:02:20]} 40. Bb4 {[%emt 0:00:18]} Kd7 {[%emt 0:01:11]} 41. Rc3 {[%emt 0:24:23]} Ra4 {[%emt 0:30:28]} 42. Bc5 {[%emt 0:22:24]} Kc6 {[%emt 0:26:58]} 43. Bf8 {[%emt 0:22:32]} Ra8 {[%emt 0:22:50]} 44. Be7 {[%emt 0:18:13]} Ra7 {[%emt 0:19:52]} 45. Bb4 {[%emt 0:18:08]} Ra4 {[%emt 0:20:08]} 46. Bf8 {[%emt 0:17:38]} Ra8 {[%emt 0:20:33]} 47. Bxa3 {[%emt 0:16:27]} Kd5 {[%emt 0:17:11]} 48. Kb2 {[%emt 0:15:01]} b4 {[%emt 0:17:18]} 49. Bxb4 {[%emt 0:15:28]} Rb8 {[%emt 0:17:44]} 50. Ka3 {[%emt 0:15:50]} Ra8+ {[%emt 0:18:10]} 51. Kb2 {[%emt 0:16:07]} Rb8 {[%emt 0:18:36]} 1/2-1/2

[Event "89th GER-ch"]
[Site "Dresden"]
[Date "2018.08.06"]
[Round "4.2"]
[White "Reuker, Jari"]
[Black "Gschnitzer, Adrian"]
[Result "1/2-1/2"]
[ECO "A58"]
[WhiteElo "2404"]
[BlackElo "2333"]
[Annotator "NA"]
[PlyCount "100"]
[EventDate "2018.08.03"]
[EventType "swiss"]
[EventCountry "GER"]
[SourceTitle "playchess.com"]
[Source "ChessBase"]
[SourceQuality "1"]
[TimeControl "40/5400+30:1800+30"]

1. d4 {[%emt 1:30:26]} Nf6 {[%emt 1:30:19]} 2. c4 {[%emt 1:30:46]} c5 {[%emt 1:30:34]} 3. d5 {[%emt 1:31:09]} b5 {[%emt 1:30:57]} 4. cxb5 {[%emt 1:31:32]} a6 {[%emt 1:31:21]} 5. bxa6 {[%emt 1:31:54]} g6 {[%emt 1:31:33]} 6. Nc3 {[%emt 1:32:16] A58: Benko/Volga Gambit: Lines with 5 bxa6} Bg7 {[%emt 1:31:36] LiveBook: 524 Games} 7. e4 {[%emt 1:32:30]} (7. Nf3 O-O 8. g3 d6 9. Bg2 Nxa6 10. O-O Bf5 11. Nh4 Bd7 12. b3 Qb6 13. Bd2 Rfb8 14. Re1 Nc7 15. Qc2 Ra3 16. Qc1 Qa7 17. e4 Ng4 18. h3 {0-1 (38) Li,C (2732)-Shankland,S (2671) Liaocheng 2018}) 7... O-O {[%emt 1:31:47]} 8. Nf3 {[%emt 1:32:27]} Qa5 {[%emt 1:31:55]} 9. Bd2 {[%emt 1:32:43]} Bxa6 {[%emt 1:31:57]} 10. Be2 {[%emt 1:32:41]} Bxe2 {[%emt 1:31:17]} 11. Qxe2 {[%emt 1:33:04]} Qa6 {[%emt 1:31:31]} 12. a4 {[%emt 1:33:04]} e6 {[%emt 1:29:29]} 13. dxe6 $146 {[%emt 1:32:57]} ({Predecessor:} 13. d6 Nc6 {0-1 (84) Gorti,A (2186)-Vigoa Apecheche,Y (2245) Manchester 2015}) 13... dxe6 {[%emt 1:25:33]} 14. Nb5 {[%emt 1:29:11]} Nc6 {[%emt 1:10:16]} 15. Bc3 {[%emt 1:29:06]} Rfb8 {[%emt 1:02:25]} ({Black should play} 15... Rab8 $14) 16. Nc7 $16 {[%emt 1:14:01]} Qxe2+ {[%emt 1:02:37]} 17. Kxe2 {[%emt 1:14:27]} Ra7 {[%emt 1:02:08]} 18. Nb5 {[%emt 1:14:35]} Rd7 {[%emt 0:44:30]} 19. Rhd1 {[%emt 0:55:53]} Rxd1 {[%emt 0:42:23]} 20. Rxd1 {[%emt 0:54:53]} Nxe4 {[%emt 0:42:02]} 21. Bxg7 {[%emt 0:53:03]} Kxg7 {[%emt 0:38:34]} 22. Rd7 {[%emt 0:50:49]} Ra8 {[%emt 0:29:26]} 23. Rc7 {[%emt 0:43:50]} Nb4 {[%emt 0:28:09]} 24. b3 {[%emt 0:34:57]} Nd5 {[%emt 0:26:59]} 25. Rb7 {[%emt 0:26:35]} c4 {[%emt 0:21:45]} 26. bxc4 {[%emt 0:25:48]} Nc5 {[%emt 0:21:53]} 27. Ra7 {[%emt 0:23:55]} Rxa7 {[%emt 0:21:00]} 28. Nxa7 {[%emt 0:24:23]} Nc3+ {[%emt 0:20:24]} 29. Ke3 {[%emt 0:23:07]} N3xa4 {[%emt 0:20:36]} 30. Nd2 {[%emt 0:15:08]} f6 {[%emt 0:16:00]} 31. f4 {[%emt 0:12:51]} Kf7 {[%emt 0:15:32]} 32. Kd4 {[%emt 0:10:59]} h6 {[%emt 0:13:02]} 33. Nc8 {[%emt 0:09:16]} Nd7 {[%emt 0:03:14]} 34. Ne4 {[%emt 0:08:36]} f5 {[%emt 0:02:58]} 35. Ned6+ {[%emt 0:08:40]} Kf6 {[%emt 0:03:10]} 36. Ne8+ {[%emt 0:07:02]} Kf7 {[%emt 0:03:33]} 37. Nc7 {[%emt 0:06:58]} Ndc5 {[%emt 0:04:03]} 38. g3 {[%emt 0:04:37]} Kf6 {[%emt 0:01:24]} 39. Nd6 {[%emt 0:01:12]} Nb3+ {[%emt 0:00:35]} 40. Kd3 {[%emt 0:00:07]} Nbc5+ {[%emt 0:00:39]} 41. Ke3 {[%emt 0:26:50]} g5 {[%emt 0:22:14]} 42. Ncb5 {[%emt 0:22:51]} e5 {[%emt 0:19:22]} 43. Ne8+ {[%emt 0:22:07]} Ke7 {[%emt 0:18:36]} 44. Nec7 {[%emt 0:20:40]} exf4+ {[%emt 0:11:11]} 45. gxf4 {[%emt 0:21:03]} gxf4+ {[%emt 0:11:14]} 46. Kxf4 {[%emt 0:20:38]} Nb6 {[%emt 0:10:17]} 47. Kxf5 {[%emt 0:18:39]} Nxc4 {[%emt 0:10:21]} 48. Kg6 {[%emt 0:18:59]} Ne5+ {[%emt 0:10:35]} 49. Kxh6 {[%emt 0:19:18]} Ng4+ {[%emt 0:10:58]} 50. Kg5 {[%emt 0:19:45]} Nxh2 {[%emt 0:11:20]} 1/2-1/2

[Event "89th GER-ch"]
[Site "Dresden"]
[Date "2018.08.06"]
[Round "4.3"]
[White "Langrock, Hannes"]
[Black "Armbrust, Florian"]
[Result "1/2-1/2"]
[ECO "D73"]
[WhiteElo "2370"]
[BlackElo "2300"]
[Annotator "NA"]
[PlyCount "80"]
[EventDate "2018.08.03"]
[EventType "swiss"]
[EventCountry "GER"]
[SourceTitle "playchess.com"]
[Source "ChessBase"]
[SourceQuality "1"]
[TimeControl "40/5400+30:1800+30"]

1. d4 {[%emt 1:30:28]} d5 {[%emt 1:30:27]} 2. Nf3 {[%emt 1:27:37]} Nf6 {[%emt 1:30:52]} 3. g3 {[%emt 1:27:10]} g6 {[%emt 1:27:27]} 4. Bg2 {[%emt 1:26:01]} Bg7 {[%emt 1:27:53]} 5. c4 {[%emt 1:26:18]} c6 {[%emt 1:27:58]} 6. cxd5 {[%emt 1:26:26]} cxd5 {[%emt 1:28:06]} 7. Ne5 {[%emt 1:25:26]} Nc6 {[%emt 1:25:03]} 8. O-O {[%emt 1:18:48]} Qb6 {[%emt 1:19:10]} 9. Nxc6 {[%emt 1:16:50]} bxc6 {[%emt 1:19:35]} 10. Nc3 {[%emt 1:16:41]} Nd7 {[%emt 1:14:30] LiveBook: 3 Games} 11. e3 {[%emt 1:06:57]} O-O $11 {[%emt 1:14:13]} 12. Na4 {[%emt 1:07:04]} Qb5 {[%emt 1:10:48]} 13. b3 {[%emt 1:00:52]} Ba6 {[%emt 0:57:44]} 14. Bb2 {[%emt 0:44:54]} Rfc8 {[%emt 0:49:30]} 15. Rc1 {[%emt 0:49:30]} e6 {[%emt 0:49:53]} 16. Qd2 {[%emt 0:38:55]} c5 {[%emt 0:45:47]} 17. dxc5 {[%emt 0:38:08]} Bxb2 {[%emt 0:45:29]} 18. Qxb2 {[%emt 0:38:30]} Nxc5 {[%emt 0:44:34]} 19. Nxc5 {[%emt 0:38:46]} Rxc5 {[%emt 0:44:40]} 20. Rxc5 {[%emt 0:38:53]} Qxc5 {[%emt 0:45:05]} 21. Rc1 {[%emt 0:39:14]} Qb6 {[%emt 0:40:12]} 22. h4 {[%emt 0:37:53]} h5 {[%emt 0:39:38]} 23. Qf6 {[%emt 0:31:50]} Rc8 {[%emt 0:38:27]} 24. Rxc8+ {[%emt 0:32:15]} Bxc8 {[%emt 0:38:51]} 25. Qc3 {[%emt 0:25:36]} Bd7 {[%emt 0:33:19]} 26. b4 {[%emt 0:25:47]} Qa6 {[%emt 0:32:33]} 27. a3 {[%emt 0:25:54]} Bb5 {[%emt 0:30:22]} 28. Bf3 {[%emt 0:25:21]} Qa4 {[%emt 0:21:10]} 29. Qc8+ {[%emt 0:22:14]} Kg7 {[%emt 0:21:21]} 30. Qc3+ {[%emt 0:22:35]} Kg8 {[%emt 0:21:35]} 31. Kg2 {[%emt 0:21:15]} Qa6 {[%emt 0:20:19]} 32. Kg1 {[%emt 0:19:02]} Qa4 {[%emt 0:20:22]} 33. g4 {[%emt 0:11:26]} hxg4 {[%emt 0:20:44]} 34. Bxg4 {[%emt 0:11:54]} Qa6 {[%emt 0:19:23]} 35. h5 {[%emt 0:11:59]} gxh5 {[%emt 0:18:54]} 36. Bxh5 {[%emt 0:12:26]} Be2 {[%emt 0:18:31]} 37. Qe5 {[%emt 0:07:59]} Bxh5 {[%emt 0:17:40]} 38. Qxh5 {[%emt 0:08:27]} Qxa3 {[%emt 0:17:50]} 39. Qg5+ {[%emt 0:08:52]} Kf8 {[%emt 0:17:51]} 40. Qd8+ {[%emt 0:09:20]} Kg7 {[%emt 0:18:12]} 1/2-1/2

[Event "89th GER-ch"]
[Site "Dresden"]
[Date "2018.08.06"]
[Round "4.4"]
[White "Gungl, Theo"]
[Black "Faerber, David"]
[Result "1/2-1/2"]
[ECO "B13"]
[WhiteElo "2283"]
[BlackElo "2321"]
[Annotator "NA"]
[PlyCount "80"]
[EventDate "2018.08.03"]
[EventType "swiss"]
[EventCountry "GER"]
[SourceTitle "playchess.com"]
[Source "ChessBase"]
[SourceQuality "1"]
[TimeControl "40/5400+30:1800+30"]

1. e4 {[%emt 1:30:28]} c6 {[%emt 1:30:07]} 2. d4 {[%emt 1:30:53]} d5 {[%emt 1:30:30]} 3. exd5 {[%emt 1:29:30]} cxd5 {[%emt 1:29:51]} 4. Bd3 {[%emt 1:29:55]} Nc6 {[%emt 1:28:54]} 5. c3 {[%emt 1:30:18]} Nf6 {[%emt 1:27:58]} 6. Bf4 {[%emt 1:30:19]} Bg4 7. Ne2 {[%emt 1:23:58]} e6 {[%emt 1:24:12]} 8. Qb3 {[%emt 1:22:27]} Qd7 {[%emt 1:13:56]} 9. O-O {[%emt 1:21:02]} Bd6 $11 {[%emt 1:07:19]} 10. Bxd6 {[%emt 1:04:43]} Qxd6 {[%emt 0:59:50]} 11. Ng3 {[%emt 1:03:18]} O-O {[%emt 0:59:09]} 12. h3 {[%emt 0:57:27]} Bh5 {[%emt 0:58:18]} 13. Nd2 {[%emt 0:55:06]} Bg6 {[%emt 0:55:53]} 14. Bxg6 {[%emt 0:53:31]} hxg6 {[%emt 0:56:04]} 15. Nf3 {[%emt 0:51:57]} Rab8 {[%emt 0:55:19]} 16. Qb5 {[%emt 0:49:11]} a6 {[%emt 0:50:44]} 17. Qe2 {[%emt 0:49:09]} Rfc8 {[%emt 0:45:56]} 18. Ne5 {[%emt 0:48:16]} Na5 {[%emt 0:40:03]} 19. h4 {[%emt 0:45:47]} Nc4 {[%emt 0:39:40]} 20. f4 {[%emt 0:41:16]} Qe7 {[%emt 0:34:25]} 21. h5 {[%emt 0:31:17]} Nxh5 {[%emt 0:28:11]} 22. Nxh5 {[%emt 0:31:39]} gxh5 {[%emt 0:28:22]} 23. Qxh5 {[%emt 0:32:00]} g6 {[%emt 0:28:01]} 24. Qh6 {[%emt 0:31:09]} Ne3 {[%emt 0:20:31]} 25. Rf3 {[%emt 0:21:45]} Nf5 {[%emt 0:20:34]} 26. Qg5 {[%emt 0:19:18]} Qxg5 {[%emt 0:18:35]} 27. fxg5 {[%emt 0:19:10]} Rc7 {[%emt 0:18:42]} 28. Rh3 {[%emt 0:18:46]} Kg7 {[%emt 0:17:50]} 29. Ng4 {[%emt 0:13:29]} Rcc8 {[%emt 0:15:14]} 30. Kf2 {[%emt 0:12:17]} Rh8 {[%emt 0:12:10]} 31. Rah1 {[%emt 0:12:35]} Rxh3 {[%emt 0:11:52]} 32. Rxh3 {[%emt 0:12:29]} Rh8 {[%emt 0:09:59]} 33. Rxh8 {[%emt 0:11:46]} Kxh8 {[%emt 0:10:24]} 34. Ne5 {[%emt 0:11:05]} Kg7 {[%emt 0:10:02]} 35. Nd7 {[%emt 0:08:10]} Nd6 {[%emt 0:09:16]} 36. Nc5 {[%emt 0:07:47]} Kf8 {[%emt 0:07:17]} 37. Kf3 {[%emt 0:07:45]} Ke7 {[%emt 0:07:26]} 38. Kf4 {[%emt 0:08:02]} a5 {[%emt 0:05:17]} 39. b3 {[%emt 0:03:03]} b6 {[%emt 0:02:26]} 40. Na4 {[%emt 0:03:18]} b5 {[%emt 0:00:47]} 1/2-1/2

[Event "89th GER-ch"]
[Site "Dresden"]
[Date "2018.08.06"]
[Round "5.1"]
[White "Poetsch, Hagen"]
[Black "Gschnitzer, Adrian"]
[Result "1/2-1/2"]
[ECO "B31"]
[WhiteElo "2513"]
[BlackElo "2333"]
[Annotator "ChessBase"]
[PlyCount "55"]
[EventDate "2018.08.03"]
[EventType "swiss"]
[EventCountry "GER"]
[SourceTitle "playchess.com"]
[Source "ChessBase"]
[SourceQuality "1"]
[TimeControl "40/5400+30:1800+30"]

1. e4 {[%emt 1:30:27]} c5 {[%emt 1:30:22]} 2. Nf3 {[%emt 1:30:51]} Nc6 {[%emt 1:30:46]} 3. Bb5 {[%emt 1:30:55]} g6 {[%emt 1:31:06]} 4. c3 {[%emt 1:31:18]} Bg7 {[%emt 1:30:29]} 5. d4 {[%emt 1:31:30]} Qb6 {[%emt 1:25:27]} 6. Bxc6 {[%emt 1:27:20]} bxc6 {[%emt 1:23:40]} 7. O-O {[%emt 1:27:07]} Nh6 {[%emt 1:20:10]} 8. Re1 {[%emt 1:20:15]} O-O {[%emt 1:19:08]} 9. Na3 {[%emt 1:14:15]} cxd4 {[%emt 1:16:35]} 10. cxd4 {[%emt 1:14:32]} d5 {[%emt 1:16:21]} 11. h3 {[%emt 1:10:34]} Bb7 {[%emt 1:08:30]} 12. e5 {[%emt 1:05:16]} f6 {[%emt 1:05:39]} 13. exf6 {[%emt 0:57:57]} exf6 {[%emt 1:05:41]} 14. Bf4 {[%emt 0:58:12]} Nf7 {[%emt 1:02:53]} 15. Qd2 {[%emt 0:53:40]} Rae8 {[%emt 0:58:47]} 16. Rac1 {[%emt 0:50:37]} Re4 {[%emt 0:55:57]} 17. Nb1 {[%emt 0:48:34]} Rxf4 {[%emt 0:43:48]} 18. Qxf4 {[%emt 0:48:05]} Bh6 {[%emt 0:44:03]} 19. Qxf6 {[%emt 0:44:57]} Ng5 {[%emt 0:42:58]} 20. Qd6 {[%emt 0:36:57]} Nxf3+ {[%emt 0:41:35]} 21. gxf3 {[%emt 0:37:23]} Bxc1 {[%emt 0:40:53]} 22. Qe6+ {[%emt 0:35:49]} Kg7 {[%emt 0:39:46]} 23. Qe5+ {[%emt 0:33:38]} Kg8 {[%emt 0:39:03]} 24. Qe6+ {[%emt 0:31:31]} Kg7 {[%emt 0:39:23]} 25. Qe5+ {[%emt 0:31:57]} Kg8 {[%emt 0:39:21]} 26. Qe6+ {[%emt 0:31:04]} Kg7 {[%emt 0:39:44]} 27. Qe5+ {[%emt 0:31:27]} Kg8 {[%emt 0:40:01]} 28. Qe6+ {[%emt 0:31:43]} 1/2-1/2

[Event "89th GER-ch"]
[Site "Dresden"]
[Date "2018.08.06"]
[Round "5.3"]
[White "Faerber, David"]
[Black "Buhmann, Rainer"]
[Result "0-1"]
[ECO "C77"]
[WhiteElo "2321"]
[BlackElo "2581"]
[Annotator "ChessBase"]
[PlyCount "46"]
[EventDate "2018.08.03"]
[EventType "swiss"]
[EventCountry "GER"]
[SourceTitle "playchess.com"]
[Source "ChessBase"]
[SourceQuality "1"]
[TimeControl "40/5400+30:1800+30"]

1. e4 {[%emt 1:30:26]} e5 {[%emt 1:30:25]} 2. Nf3 {[%emt 1:30:44]} Nc6 {[%emt 1:30:51]} 3. Bb5 {[%emt 1:30:59]} a6 {[%emt 1:31:16]} 4. Ba4 {[%emt 1:31:21]} Nf6 {[%emt 1:31:41]} 5. O-O {[%emt 1:31:38]} Be7 {[%emt 1:32:07]} 6. d3 {[%emt 1:31:48]} b5 {[%emt 1:31:55]} 7. Bb3 {[%emt 1:32:00]} d6 {[%emt 1:32:21]} 8. a3 {[%emt 1:31:48]} O-O {[%emt 1:32:36]} 9. Nc3 {[%emt 1:32:10]} Kh8 {[%emt 1:31:01]} 10. h3 {[%emt 1:23:00]} Be6 {[%emt 1:27:41]} 11. Bxe6 {[%emt 1:02:58]} fxe6 {[%emt 1:26:44]} 12. Ng5 {[%emt 0:59:19]} Qd7 {[%emt 1:25:22]} 13. f4 {[%emt 0:58:28]} exf4 {[%emt 1:22:41]} 14. Rxf4 {[%emt 0:44:52]} h6 {[%emt 1:16:24]} 15. Nf3 {[%emt 0:39:13]} g5 {[%emt 1:13:08]} 16. Rg4 {[%emt 0:36:24]} Nxg4 {[%emt 1:11:43]} 17. hxg4 {[%emt 0:36:48]} Bf6 {[%emt 0:52:30]} 18. Be3 {[%emt 0:32:23]} Ne5 {[%emt 0:51:59]} 19. Nd2 {[%emt 0:30:38]} c5 {[%emt 0:51:30]} 20. Nf1 {[%emt 0:29:38]} Nc6 {[%emt 0:44:16]} 21. Qd2 {[%emt 0:28:47]} Bd4 {[%emt 0:40:46]} 22. Nd1 {[%emt 0:28:32]} Qf7 {[%emt 0:38:54]} 23. Nf2 {[%emt 0:27:39]} Bxb2 {[%emt 0:38:27]} 0-1

[Event "89th GER-ch"]
[Site "Dresden"]
[Date "2018.08.06"]
[Round "5.4"]
[White "Armbrust, Florian"]
[Black "Reuker, Jari"]
[Result "1/2-1/2"]
[ECO "C68"]
[WhiteElo "2300"]
[BlackElo "2404"]
[Annotator "NA"]
[PlyCount "60"]
[EventDate "2018.08.03"]
[EventType "swiss"]
[EventCountry "GER"]
[SourceTitle "playchess.com"]
[Source "ChessBase"]
[SourceQuality "1"]
[TimeControl "40/5400+30:1800+30"]

1. e4 {[%emt 1:30:29]} e5 {[%emt 1:30:13]} 2. Nf3 {[%emt 1:30:14]} Nc6 {[%emt 1:30:36]} 3. Bb5 {[%emt 1:30:41]} a6 {[%emt 1:31:01]} 4. Bxc6 {[%emt 1:31:07]} dxc6 {[%emt 1:31:26]} 5. O-O {[%emt 1:31:32]} Qf6 {[%emt 1:31:45]} 6. d4 {[%emt 1:30:43] C68: Ruy Lopez: Exchange Variation, sidelines} exd4 {[%emt 1:32:08]} 7. Bg5 {[%emt 1:30:12]} Qd6 {[%emt 1:32:32]} 8. Nxd4 {[%emt 1:25:24]} Be7 {[%emt 1:32:41]} 9. Bxe7 {[%emt 1:22:17]} Nxe7 {[%emt 1:33:02]} 10. Nc3 {[%emt 1:21:59]} Bd7 {[%emt 1:33:25]} 11. Nb3 {[%emt 1:20:09]} Qxd1 {[%emt 1:33:37]} 12. Raxd1 {[%emt 1:19:15]} b6 {[%emt 1:33:57]} 13. Rd2 {[%emt 1:18:35]} O-O-O {[%emt 1:34:12] [#]} 14. Rfd1 $146 {[%emt 1:18:06]} c5 {[%emt 1:34:26]} 15. Nd5 {[%emt 1:14:56]} Nxd5 {[%emt 1:34:14]} 16. Rxd5 {[%emt 1:15:07]} f5 {[%emt 1:34:00]} 17. exf5 {[%emt 1:14:36]} Bxf5 {[%emt 1:34:18]} 18. Rxd8+ $1 {[%emt 1:14:29]} Rxd8 {[%emt 1:34:41]} 19. Rxd8+ {[%emt 1:14:54]} Kxd8 {[%emt 1:35:07]} 20. c3 {[%emt 1:06:25]} Be6 {[%emt 1:06:19]} 21. Nc1 $11 {[%emt 1:06:49]} Ke7 {[%emt 1:05:22]} 22. f3 {[%emt 1:06:41]} Kd6 {[%emt 0:53:34]} 23. Kf2 {[%emt 1:07:04]} a5 {[%emt 0:48:59]} 24. Ke3 {[%emt 1:05:05]} a4 {[%emt 0:42:48]} 25. g4 {[%emt 0:53:27]} a3 {[%emt 0:36:15]} 26. bxa3 {[%emt 0:51:41]} Kd5 {[%emt 0:35:53]} 27. Kd3 {[%emt 0:48:37]} Ke5 {[%emt 0:35:05]} 28. Ke3 {[%emt 0:48:03]} Kd5 {[%emt 0:35:29]} 29. Kd3 {[%emt 0:43:50]} Ke5 {[%emt 0:10:03]} 30. Ke3 {[%emt 0:43:08]} Kd5 {[%emt 0:10:20]} 1/2-1/2

[Event "89th GER-ch"]
[Site "Dresden"]
[Date "2018.08.08"]
[Round "6"]
[White "Colpe, Malte"]
[Black "Faerber, David"]
[Result "1-0"]
[ECO "B13"]
[WhiteElo "2384"]
[BlackElo "2321"]
[Annotator "NA"]
[PlyCount "119"]
[EventDate "2018.08.03"]
[EventType "swiss"]
[EventCountry "GER"]
[SourceTitle "playchess.com"]
[Source "ChessBase"]
[SourceQuality "1"]
[TimeControl "40/5400+30:1800+30"]

1. e4 c6 2. d4 d5 3. exd5 cxd5 4. c4 Nf6 5. Nc3 Nc6 6. Nf3 Bg4 7. Bg5 Ne4 8. Be3 e6 9. cxd5 exd5 10. Bd3 Nxc3 11. bxc3 Be7 12. Rb1 Qd7 13. Qc2 Bxf3 14. gxf3 Bf6 15. Rb5 Ne7 16. h4 h6 17. Qb3 b6 18. h5 O-O 19. Kd2 Rfe8 20. a4 Bg5 21. f4 Bf6 22. Bb1 Kf8 23. Qc2 Qg4 24. Qh7 Ng8 25. Qf5 Qxf5 26. Bxf5 Ne7 27. Bg4 Red8 28. Rhb1 Rd6 29. a5 Rb8 30. Kd3 Bh4 31. Bf3 Ke8 32. Rh1 Bf6 33. Ra1 a6 34. Rxb6 Rbxb6 35. axb6 Rxb6 36. Ra5 Rd6 37. Bc1 Bh4 38. Ke2 Re6+ 39. Kf1 Rc6 40. Bd2 Rd6 41. Be2 Rb6 42. Bxa6 Kd7 43. Bd3 Ke6 44. f5+ Kd6 45. Bf4+ Kc6 46. Rc5+ Kb7 47. Rc7+ Ka8 48. Be5 Rb2 49. Be2 f6 50. Rxe7 fxe5 51. Re8+ Kb7 52. dxe5 Rb1+ 53. Kg2 Rb2 54. Kf3 Rc2 55. Rg8 Rxc3+ 56. Kg4 Bxf2 57. Rxg7+ Kc8 58. f6 Bc5 59. e6 Bd6 60. Ba6+ 1-0

[Event "89th GER-ch"]
[Site "Dresden"]
[Date "2018.08.08"]
[Round "6"]
[White "Syrov, Arkadi"]
[Black "Heinert, Eugen"]
[Result "1-0"]
[ECO "C18"]
[WhiteElo "2295"]
[BlackElo "2146"]
[Annotator "NA"]
[PlyCount "51"]
[EventDate "2018.08.03"]
[EventType "swiss"]
[EventCountry "GER"]
[SourceTitle "playchess.com"]
[Source "ChessBase"]
[SourceQuality "1"]
[TimeControl "40/5400+30:1800+30"]

1. e4 e6 2. d4 d5 3. Nc3 Bb4 4. e5 c5 5. a3 Bxc3+ 6. bxc3 Ne7 7. Qg4 cxd4 8. Qxg7 Rg8 9. Qxh7 Qc7 10. Ne2 Nbc6 11. f4 Bd7 12. h4 O-O-O 13. Qd3 dxc3 14. h5 d4 15. h6 Rg6 16. h7 Rh8 17. Nxd4 Nxd4 18. Qxd4 Nf5 19. Qxa7 Qc6 20. Rh3 Qe4+ 21. Be3 Nxe3 22. Rxe3 Qxf4 23. Rxc3+ Kd8 24. Qb8+ Ke7 25. Qd6+ Ke8 26. Rc8+ 1-0

[Event "89th GER-ch"]
[Site "Dresden"]
[Date "2018.08.08"]
[Round "6"]
[White "Fischer, Sebastian"]
[Black "Gaede, Derek"]
[Result "0-1"]
[ECO "D03"]
[WhiteElo "2292"]
[BlackElo "2298"]
[Annotator "NA"]
[PlyCount "70"]
[EventDate "2018.08.03"]
[EventType "swiss"]
[EventCountry "GER"]
[SourceTitle "playchess.com"]
[Source "ChessBase"]
[SourceQuality "1"]
[TimeControl "40/5400+30:1800+30"]

1. d4 Nf6 2. Nf3 d5 3. Bg5 Ne4 4. Bh4 h5 5. c4 f6 6. cxd5 g5 7. Bg3 h4 8. Qc2 Bf5 9. Bxc7 Qc8 10. Qa4+ Nd7 11. Ba5 Qc1+ 12. Qd1 Qxd1+ 13. Kxd1 Nxf2+ 14. Ke1 Nxh1 15. Nc3 g4 16. Nd2 g3 17. h3 Nf2 18. e4 Bg6 19. Nb5 Bh6 20. Nc7+ Kf7 21. Nxa8 Rxa8 22. Rc1 Nxe4 23. Rc7 Bxd2+ 24. Bxd2 Nxd2 25. Kxd2 Bf5 26. Bc4 Ke8 27. Ke3 Rb8 28. Bb3 Kd8 29. Rc1 Rc8 30. Rf1 Bc2 31. Kd2 Be4 32. Rf4 Bxg2 33. Rxh4 Bf3 34. Rh7 g2 35. Rg7 Nb6 0-1